[Event "Dutch Open 2022"]
[Site "Dieren"]
[Date "2022.07.30"]
[Round "5.2"]
[White "Van Roon, Sjoerd"]
[Black "Van Baar, Esper"]
[Result "1-0"]
[ECO "B52"]
[WhiteElo "2310"]
[BlackElo "2281"]
[Annotator "TA"]
[PlyCount "81"]
[EventDate "2022.07.14"]
[EventType "swiss"]
[EventCountry "NED"]
[SourceTitle "playchess.com"]
[Source "ChessBase"]
[SourceQuality "1"]
[TimeControl "40/5400+30:1800+30"]

{[%evp 12,81,21,16,23,20,27,18,24,21,52,-6,6,2,66,22,35,23,37,36,33,25,24,33,52,37,45,33,78,91,84,61,155,158,172,165,177,169,222,219,217,84,67,26,42,-3,20,0,0,-73,-65,-48,-49,-62,-58,-63,502,481,477,442,789,803,792,788,886,875,12836,12834,12834,12835,12835,2694]} 1. e4 {[%emt 0:00:02]} c5 {[%emt 0:00:07]} 2. Nf3 {[%emt 0:00:04]} d6 {[%emt 0:00:05]} 3. Bb5+ {[%emt 0:00:03]} Bd7 {[%emt 0:01:12]} 4. Bxd7+ {[%emt 0:00:07]} Qxd7 {[%emt 0:00:12]} 5. c4 {[%emt 0:00:19]} e5 {[%emt 0:00:33]} 6. Nc3 {[%emt 0:00:50]} Nc6 {[%emt 0:00:24]} 7. d3 {[%emt 0:00:32]} Be7 {[%emt 0:00:15] is now more promising than 7...g6. B52: Sicilian: Moscow Variation with 3...Bd7.} 8. O-O {[%emt 0:02:03]} f5 {[%emt 0:00:20]} 9. exf5 {[%emt 0:08:55]} Qxf5 {[%emt 0:00:25] The position is equal.} 10. Nd5 {[%emt 0:00:35] [#] Hoping for Nc7+.} Bd8 $146 {[%emt 0:00:29] Prevents Nc7+.} ({Predecessor:} 10... Qd7 11. Be3 Nf6 12. Nxe7 Nxe7 13. Re1 O-O 14. Ng5 Ng4 15. Ne4 Nxe3 16. Rxe3 Nf5 {0-1 (41) Tiemann,C (2083)-Tkachuk,K (2214) Playchess.com INT 2009}) 11. Ng5 {[%emt 0:08:11]} Nf6 {[%emt 0:24:15]} 12. f4 {[%emt 0:01:15] fxe5 is the strong threat.} Qd7 {[%emt 0:37:36]} ({Better is} 12... O-O $1 $11) 13. f5 {[%emt 0:09:51] White wants to play Ne6.} O-O {[%emt 0:10:48]} 14. Ne6 $36 {[%emt 0:00:14][%mdl 2048] White is more active.} Rf7 {[%emt 0:01:45]} 15. Bg5 {[%emt 0:06:08]} Nd4 {[%emt 0:07:12] And now ...Nxd5 would win.} 16. Bxf6 {[%emt 0:07:39]} Bxf6 {[%emt 0:07:08]} 17. Nxd4 {[%emt 0:52:12]} exd4 {[%emt 0:01:43]} 18. Qh5 {[%emt 0:00:00]} Raf8 {[%emt 0:02:16]} 19. Rf3 {[%emt 0:00:00][%cal Bf1f3,Bf3h3,Bh3h5][%mdl 32]} Be5 {[%emt 0:00:48]} 20. Rh3 {[%emt 0:00:00][%csl Gh3][%cal Rh5h7]} h6 {[%emt 0:00:44]} 21. g4 {[%emt 0:00:00]} Qd8 {[%emt 0:01:09]} ({Black should play} 21... b5 $14) 22. Qg6 $16 {[%emt 0:00:00] Threatens to win with Rxh6.} Qg5 {[%emt 0:01:11]} 23. Qxg5 {[%emt 0:00:00]} hxg5 {[%emt 0:00:04] [#]} 24. Rh5 $1 {[%emt 0:00:00]} Bf6 {[%emt 0:01:09]} (24... a6 {might work better.} 25. a4 (25. Rxg5 b5 $16) 25... Re8) 25. Re1 $18 {[%emt 0:00:00]} a6 {[%emt 0:00:35]} 26. Re4 {[%emt 0:00:00]} (26. Re6 $18 {and White stays clearly on top.}) 26... b5 $16 {[%emt 0:00:30]} 27. cxb5 {[%emt 0:00:00] 0x0.00208e730f81dp-1022s more active pieces.} axb5 {[%emt 0:00:06]} 28. h4 {[%emt 0:00:00]} Be5 {[%emt 0:00:56]} 29. hxg5 {[%emt 0:00:00] Black must now prevent g6.} g6 $1 {[%emt 0:00:10]} 30. Rh3 {[%emt 0:00:00]} (30. fxg6 $2 {is a self mate.} Rf1+ 31. Kg2 R8f2+ 32. Kh3 Rh2#) (30. Rxe5 $11 {keeps the balance.} dxe5 31. fxg6 Rf1+ 32. Kg2) 30... gxf5 $17 {[%emt 0:00:25]} 31. gxf5 {[%emt 0:00:00] Strongly threatening f6.} Rg7 {[%emt 0:00:26]} 32. g6 {[%emt 0:00:00]} Rxf5 {[%emt 0:00:07]} 33. Rg4 {[%emt 0:00:00]} Bf6 $2 {[%emt 0:01:15][%mdl 8192] [#] A mistake that costs the game.} (33... Rd7 $15 {keeps the upper hand.}) 34. Rh5 $3 $18 {[%emt 0:00:00][%mdl 512] White is clearly winning.} Rxd5 {[%emt 0:00:36]} (34... Rf3 $2 35. Kg2) 35. Rxd5 {[%emt 0:00:00][%mdl 4096] Endgame KRR-KRB} Be5 {[%emt 0:00:23]} (35... Be7 $142 36. Kg2 Bf8) 36. b4 {[%emt 0:00:00]} c4 {[%emt 0:00:19]} 37. Rxb5 {[%emt 0:00:00][%cal Rb5b8]} Ra7 {[%emt 0:00:50]} 38. dxc4 {[%emt 0:00:00]} Rxa2 {[%emt 0:00:29]} 39. g7 {[%emt 0:00:00] Intending Rb8+ and mate.} Ra8 {[%emt 0:00:25] Prevents Rb8+.} 40. Kf2 {[%emt 0:00:00]} Rc8 {[%emt 0:00:36]} 41. Ke2 {[%emt 0:19:43] Weighted Error Value: White=0.20 (precise) /Black=0.50} 1-0

[Event "Dutch Open 2022"]
[Site "Dieren"]
[Date "2022.07.30"]
[Round "5.3"]
[White "Grutter, Tim"]
[Black "De Winter, Arthur"]
[Result "0-1"]
[ECO "B32"]
[WhiteElo "2246"]
[BlackElo "2150"]
[Annotator "TA"]
[PlyCount "66"]
[EventDate "2022.07.14"]
[EventType "swiss"]
[EventCountry "NED"]
[SourceTitle "playchess.com"]
[Source "ChessBase"]
[SourceQuality "1"]
[TimeControl "40/5400+30:1800+30"]

{[%evp 14,66,12,18,25,25,32,21,32,26,27,25,52,28,47,61,48,48,58,30,35,45,36,35,22,15,36,0,0,-24,-16,-19,0,-51,-32,-45,-41,-63,-52,-52,-52,-272,-273,-535,-540,-531,-532,-538,-535,-536,-529,-29955,-29955,-29968,-29969]} 1. e4 {[%emt 0:00:05]} c5 {[%emt 0:00:04]} 2. Nf3 {[%emt 0:00:09][%cal Bg1f3,Bf3d4,Bd4b5,Bb5a3,Ba3c2][%mdl 32]} Nc6 {[%emt 0:00:03]} 3. d4 {[%emt 0:00:04]} cxd4 {[%emt 0:00:03]} 4. Nxd4 {[%emt 0:00:04]} e5 {[%emt 0:00:03]} 5. Nb5 {[%emt 0:00:53]} d6 {[%emt 0:00:03]} 6. c4 {[%emt 0:02:00]} Be6 $1 {[%emt 0:00:24][%mdl 4] is now more promising than 6...Be7.} 7. N1c3 {[%emt 0:01:09]} a6 {[%emt 0:00:08]} 8. Na3 {[%emt 0:00:03]} g6 {[%emt 0:00:14] B32: Sicilian: Löwenthal and Kalashnikov Variations.} 9. Bd3 {[%emt 0:05:37]} Bg7 {[%emt 0:00:28]} 10. O-O {[%emt 0:02:02]} Nf6 {[%emt 0:00:45] The position is equal.} 11. Nc2 {[%emt 0:03:02]} O-O {[%emt 0:01:35] [#]} 12. Rb1 $146 {[%emt 0:08:36]} ({Predecessor:} 12. b3 Rc8 13. Ba3 Nh5 14. g3 Nf6 15. Be2 Nd4 16. Qd3 b5 17. Ne3 Qa5 18. Bb2 bxc4 19. bxc4 {0-1 (58) Matta,V (2305)-Risteski,E (2363) Arandjelovac 2022}) 12... Nh5 {[%emt 0:11:13]} 13. g3 {[%emt 0:03:59]} b5 {[%emt 0:10:51]} 14. cxb5 {[%emt 0:09:31]} axb5 {[%emt 0:00:06]} 15. Bxb5 {[%emt 0:05:37]} Nd4 {[%emt 0:00:12]} 16. Bd3 {[%emt 0:06:03]} Qd7 {[%emt 0:05:47]} 17. Nxd4 {[%emt 0:04:55]} exd4 {[%emt 0:00:09]} 18. Nd5 {[%emt 0:00:22] And now Nb6 would win.} Rxa2 {[%emt 0:00:23]} 19. Bc4 {[%emt 0:03:38]} Ra7 {[%emt 0:02:17]} 20. b3 {[%emt 0:00:43]} Nf6 $1 {[%emt 0:18:40]} 21. Bb2 {[%emt 0:11:10]} Nxd5 {[%emt 0:25:52]} ({But not} 21... Nxe4 22. Bxd4 Bxd5 23. Bxd5 $14) 22. exd5 {[%emt 0:01:59]} Bf5 {[%emt 0:02:51]} (22... Bg4 {keeps more tension.} 23. Qd2 Bf3 24. Qf4 Qf5) 23. Ra1 {[%emt 0:04:02]} ({White should try} 23. Rc1 $11) 23... Rfa8 {[%emt 0:01:20]} 24. Rxa7 {[%emt 0:01:03]} Qxa7 {[%emt 0:00:06]} 25. Re1 {[%emt 0:03:27]} Qa5 $36 {[%emt 0:02:28][%cal Of5c2][%mdl 2048] Threatens to win with ...Bc2! Black is pushing.} 26. Qa1 {[%emt 0:06:57]} Qxa1 {[%emt 0:05:13]} 27. Bxa1 {[%emt 0:01:32] This move loses the game for White.} ({White must play} 27. Rxa1 $15 Rxa1+ 28. Bxa1) 27... Bc2 $19 {[%emt 0:00:08] [#] Hoping for ...d3.} 28. Kg2 $2 {[%emt 0:08:01]} (28. Rf1) 28... d3 {[%emt 0:00:45][%cal Bd4d3,Bd3d2][%mdl 32]} 29. Bxg7 {[%emt 0:00:05]} Kxg7 {[%emt 0:02:22]} 30. Rf1 {[%emt 0:00:39]} Re8 {[%emt 0:00:49] aiming for ...d2.} 31. Bb5 {[%emt 0:02:56]} Re7 {[%emt 0:00:08] [#] ...d2 is the strong threat.} 32. Kf3 {[%emt 0:01:49]} d2 {[%emt 0:00:06]} 33. Be2 {[%emt 0:00:04]} Bxb3 {[%emt 0:00:02] Weighted Error Value: White=0.49/Black=0.05 (flawless)} 0-1

[Event "Dutch Open 2022"]
[Site "Dieren"]
[Date "2022.07.30"]
[Round "5.4"]
[White "Balaji Sekar"]
[Black "Domalchuk-Jonasson, Aleksandr"]
[Result "0-1"]
[ECO "C02"]
[WhiteElo "1189"]
[BlackElo "2244"]
[Annotator "TA"]
[PlyCount "52"]
[EventDate "2022.07.14"]
[EventType "swiss"]
[EventCountry "NED"]
[SourceTitle "playchess.com"]
[Source "ChessBase"]
[SourceQuality "1"]
[TimeControl "40/5400+30:1800+30"]

{[%evp 15,52,12,10,8,4,5,69,39,52,-16,-31,-41,-39,-39,-57,-107,-85,-72,-91,-332,-196,-299,-300,-366,-363,-353,-363,-348,-143,-581,-479,-487,-486,-439,-462,-793,-719,-29992,-29993]} 1. e4 {[%emt 0:00:03]} e6 {[%emt 0:02:30]} 2. d4 {[%emt 0:00:01]} d5 {[%emt 0:00:08]} 3. e5 {[%emt 0:00:06]} c5 {[%emt 0:00:13]} 4. c3 {[%emt 0:00:07]} Nc6 {[%emt 0:00:12]} 5. Nf3 {[%emt 0:00:09]} Nge7 {[%emt 0:00:34]} 6. Na3 {[%emt 0:00:08]} cxd4 {[%emt 0:02:16]} 7. cxd4 {[%emt 0:00:10]} Nf5 {[%emt 0:00:05]} 8. Nc2 {[%emt 0:00:10]} Qb6 {[%emt 0:01:19]} 9. Bd3 {[%emt 0:00:22] 9.Be2 is not played anymore. C02: French: Advance Variation.} Bd7 {[%emt 0:00:56][%cal Rf5d4]} (9... Ncxd4 $2 10. Nfxd4 Nxd4 11. Nxd4 $18) (9... Nfxd4 $2 10. Ncxd4 Nxd4 11. Nxd4 $18 (11. Qa4+ Nc6 $15)) 10. O-O {[%emt 0:00:15][%cal Ob2b4]} Be7 {[%emt 0:02:46] Against b4} (10... Nfxd4 $2 11. Nfxd4 Nxe5 12. Be2 $18) (10... Nb4 $11) 11. b4 {[%emt 0:04:45] [#] White is slightly better.} a5 $146 {[%emt 0:12:46]} (11... Ncxd4 $2 12. Nfxd4 Nxd4 13. Be3 $18) (11... Nxb4 $2 12. Rb1 $18) (11... Nfxd4 12. Nfxd4 Nxe5 13. Be2 $16) ({Predecessor:} 11... Rc8 12. a3 a5 13. Rb1 axb4 14. axb4 Na7 15. g4 Nh6 16. Ne3 Nb5 17. Bb2 f6 {0-1 (36) Zhigalko,A (2568)-Vitiugov,N (2638) Warsaw 2008}) 12. b5 {[%emt 0:35:10]} (12. g4 $14 Nh4 13. Nxh4 Bxh4 14. bxa5 Qxa5 15. Rb1) 12... Ncxd4 $11 {[%emt 0:01:32]} 13. Nfxd4 {[%emt 0:01:59]} Nxd4 {[%emt 0:00:06]} 14. Qg4 {[%emt 0:02:53]} Nxc2 {[%emt 0:09:32]} 15. Qxg7 {[%emt 0:00:08] [#]} (15. Bxc2 $15 g6 16. Bd3) 15... O-O-O $1 $17 {[%emt 0:00:30]} 16. Bxc2 {[%emt 0:00:56]} Bxb5 {[%emt 0:03:52]} 17. Re1 {[%emt 0:01:38]} (17. Rb1 $17 Qc6 18. Rxb5 Qxb5 19. Qxf7) 17... Rdg8 {[%emt 0:15:50]} (17... Bh4 $142 18. Be3 d4) 18. Qxf7 {[%emt 0:17:13]} (18. Qh6 $142) 18... Bc5 $1 $19 {[%emt 0:09:20] Strongly threatening ...Rf8.} 19. Be3 {[%emt 0:07:10]} d4 {[%emt 0:00:54][%cal Bd5d4,Bd4d3][%mdl 32]} 20. Bh6 {[%emt 0:00:02]} d3 {[%emt 0:19:48]} ({Not} 20... Qc6 21. Be4 Qd7 22. Qxd7+ Kxd7 23. Rac1 $14) 21. Bb3 {[%emt 0:00:17]} Rg6 $40 {[%emt 0:00:10][%mdl 128] White is in trouble.} (21... Kb8 $1 $19 {has better winning chances.} 22. Kh1 Bxf2) 22. Rac1 $2 {[%emt 0:18:55][%mdl 8192] This costs White the game.} (22. Be3 $17 Qc6 23. g3) 22... Kb8 {[%emt 0:02:47] aiming for ...Bc6.} ({Weaker is} 22... Rxh6 23. Qe7 $11 (23. Qg7 Rd8 $17)) 23. Rxc5 {[%emt 0:01:21]} Qxc5 {[%emt 0:01:05]} 24. Rc1 {[%emt 0:00:01] [#]} Qb4 {[%emt 0:03:39]} 25. Qc7+ {[%emt 0:03:55]} (25. Qf4 $142 Bc6 26. Qxb4 axb4 27. Rxc6 bxc6 28. Be3) 25... Ka8 {[%emt 0:00:06] ...d2 is the strong threat.} 26. Be3 {[%emt 0:01:11] [#]} Rxg2+ $3 {[%emt 0:02:05][%mdl 512] Weighted Error Value: White=1.18/Black=0.31} 0-1

[Event "Dutch Open 2022"]
[Site "Dieren"]
[Date "2022.07.30"]
[Round "5.5"]
[White "Stillger, Bernhard"]
[Black "Burdalev, Kirill"]
[Result "1/2-1/2"]
[ECO "D30"]
[WhiteElo "2245"]
[BlackElo "2381"]
[Annotator "TA"]
[PlyCount "28"]
[EventDate "2022.07.14"]
[EventType "swiss"]
[EventCountry "NED"]
[SourceTitle "playchess.com"]
[Source "ChessBase"]
[SourceQuality "1"]
[TimeControl "40/5400+30:1800+30"]

{[%evp 14,28,16,17,20,8,5,8,15,13,126,32,91,79,75,60,47]} 1. d4 {[%emt 0:00:03]} Nf6 {[%emt 0:02:39]} 2. Nf3 {[%emt 0:00:31]} d5 {[%emt 0:03:12]} 3. c4 {[%emt 0:03:54]} c6 {[%emt 0:06:26]} 4. Qc2 {[%emt 0:01:03]} dxc4 {[%emt 0:00:47]} 5. Qxc4 {[%emt 0:00:30]} b5 {[%emt 0:01:11]} 6. Qd3 {[%emt 0:04:06]} e6 {[%emt 0:00:24]} 7. g3 {[%emt 0:01:00]} Bb7 {[%emt 0:02:02]} 8. Bg2 {[%emt 0:00:56]} Nbd7 {[%emt 0:00:53] D30: Queen's Gambit Declined: Systems without Nc3.} 9. O-O {[%emt 0:01:40]} a6 {[%emt 0:01:19]} 10. Be3 {[%emt 0:10:12]} c5 {[%emt 0:13:33] The position is equal.} 11. dxc5 {[%emt 0:01:14] [#]} Be4 $146 {[%emt 0:17:52] [#]} (11... Bxc5 $11 12. Rc1 Bxe3 13. Qxe3 O-O) ({Predecessor:} 11... Bxc5 12. Nbd2 O-O 13. Rac1 Rc8 14. Nb3 Be7 15. Bd4 Rxc1 16. Rxc1 Qa8 17. Ne1 Bxg2 18. Nxg2 {0-1 (48) Barp,A (2388)-Tabatabaei,M (2643) Cattolica 2022}) 12. Qd1 {[%emt 0:04:17]} ({White should play} 12. Qa3 $1 $16) 12... Nxc5 {[%emt 0:01:49] [#]} (12... Bxc5 $14 13. Bxc5 Nxc5) 13. Qxd8+ $1 $16 {[%emt 0:01:34]} Rxd8 {[%emt 0:00:06]} 14. Nbd2 {[%emt 0:01:03]} Bd5 {[%emt 0:06:12] Weighted Error Value: White=0.19 (very precise) /Black=0.44} 1/2-1/2

[Event "Dutch Open 2022"]
[Site "Dieren"]
[Date "2022.07.30"]
[Round "5.6"]
[White "Gilmanov, Mansur"]
[Black "Mollema, Thomas"]
[Result "1/2-1/2"]
[ECO "D00"]
[WhiteElo "2377"]
[BlackElo "2235"]
[Annotator "TA"]
[PlyCount "37"]
[EventDate "2022.07.14"]
[EventType "swiss"]
[EventCountry "NED"]
[SourceTitle "playchess.com"]
[Source "ChessBase"]
[SourceQuality "1"]
[TimeControl "40/5400+30:1800+30"]

{[%evp 9,37,2,12,15,13,10,9,0,7,0,0,0,0,-2,6,-18,-17,-22,-22,-12,-11,-21,-18,-44,-25,-22,-11,-13,0,0]} 1. d4 {[%emt 0:03:42]} d5 {[%emt 0:00:22]} 2. e3 {[%emt 0:00:03]} Nf6 {[%emt 0:01:13]} 3. f4 {[%emt 0:00:41]} e6 {[%emt 0:04:30]} 4. Nf3 {[%emt 0:00:19]} Ne4 {[%emt 0:01:38]} 5. Bd3 {[%emt 0:00:45]} f5 {[%emt 0:01:26]} 6. O-O {[%emt 0:00:31] D00: 1 d4 d5: Unusual lines.} Be7 {[%emt 0:00:49]} 7. b3 {[%emt 0:02:44]} O-O {[%emt 0:00:25] [#]} 8. Ba3 $146 {[%emt 0:02:35]} ({Predecessor:} 8. Ne5 Nd7 9. Bb2 Nxe5 10. dxe5 Bd7 11. c4 c6 12. Nd2 Bc5 13. Bd4 Qb6 14. Bxc5 Qxc5 {0-1 (52) Schaetz,B (1311)-Rethmann,K (1453) Willingen 2008}) 8... b6 {[%emt 0:00:20]} 9. Bxe7 {[%emt 0:08:05]} Qxe7 {[%emt 0:00:07]} 10. Bxe4 {[%emt 0:00:13]} fxe4 {[%emt 0:01:45]} 11. Ne5 {[%emt 0:00:07]} Ba6 {[%emt 0:00:17]} 12. Rf2 {[%emt 0:01:02]} Nd7 {[%emt 0:00:32]} 13. Nxd7 {[%emt 0:08:51]} Qxd7 {[%emt 0:00:05]} 14. Nc3 {[%emt 0:00:05]} c5 {[%emt 0:00:48]} 15. dxc5 {[%emt 0:08:22]} Qc6 {[%emt 0:03:08]} 16. Qg4 {[%emt 0:22:55]} Rf5 {[%emt 0:05:14]} 17. Rd1 {[%emt 0:02:42]} Raf8 {[%emt 0:00:55]} 18. Ne2 {[%emt 0:10:12] [#] And now Nd4 would win.} Bxe2 {[%emt 0:05:39]} 19. Qxe2 {[%emt 0:03:16] A balanced but interesting game.  Weighted Error Value: White=0.06 (flawless) /Black=0.06 (flawless)} 1/2-1/2

[Event "Dutch Open 2022"]
[Site "Dieren"]
[Date "2022.07.30"]
[Round "5.7"]
[White "Ypma, Peter"]
[Black "Manukonda Arun"]
[Result "1-0"]
[ECO "B31"]
[WhiteElo "2346"]
[BlackElo "2021"]
[Annotator "TA"]
[PlyCount "114"]
[EventDate "2022.07.14"]
[EventType "swiss"]
[EventCountry "NED"]
[SourceTitle "playchess.com"]
[Source "ChessBase"]
[SourceQuality "1"]
[TimeControl "40/5400+30:1800+30"]

{[%evp 9,114,-5,6,-20,2,0,10,5,18,7,29,24,49,28,37,31,55,36,41,25,28,-10,51,42,57,59,105,114,113,79,65,64,73,48,50,50,64,42,166,166,152,160,170,170,180,172,186,179,227,227,227,227,227,229,239,227,313,262,262,255,261,256,235,252,358,351,349,342,379,300,291,149,329,334,310,309,283,184,184,77,51,68,802,802,758,760,789,748,770,776,900,883,846,842,958,961,944,907,1039,1039,1970,1852,29976,6741,29985,29986,6797]} 1. e4 {[%emt 0:00:03]} c5 {[%emt 0:07:59]} 2. Be2 {[%emt 0:00:08]} d6 {[%emt 0:01:06]} 3. f4 {[%emt 0:00:21]} g6 {[%emt 0:00:29]} 4. Nf3 {[%emt 0:00:08]} Bg7 {[%emt 0:00:03]} 5. O-O {[%emt 0:00:16]} Nc6 {[%emt 0:01:52]} 6. Kh1 {[%emt 0:03:54] B31: Sicilian: 2...Nc6 3 Bb5 g6.} e6 {[%emt 0:02:31]} 7. c3 {[%emt 0:00:25]} Nge7 {[%emt 0:03:59]} 8. d4 {[%emt 0:00:28] The position is equal.} cxd4 {[%emt 0:00:58]} 9. cxd4 {[%emt 0:00:37]} d5 {[%emt 0:00:18]} 10. e5 {[%emt 0:01:22] [#]} Nf5 $146 {[%emt 0:06:36]} ({Predecessor:} 10... h5 11. Nc3 Nf5 12. g3 Bd7 13. Kg2 a6 14. b3 Qb6 15. Na4 Qa7 16. Nc5 Bf8 17. Nxd7 Kxd7 {1-0 (32) Khalafova,N (2279)-Legenia,A (2144) Chess.com INT 2021}) 11. Na3 {[%emt 0:03:49]} (11. g4 $5 {[%cal Rg4f5]} Nfe7 12. h3 $14) 11... a6 {[%emt 0:01:11]} 12. Nc2 {[%emt 0:00:21]} Qb6 {[%emt 0:03:25]} 13. b3 {[%emt 0:20:00][%cal Bb2b3,Bb3b4][%mdl 32]} h5 {[%emt 0:05:58]} 14. Qe1 {[%emt 0:17:41]} Bd7 {[%emt 0:13:09]} (14... Nfxd4 $2 15. Qf2 $18) (14... Ncxd4 $2 15. Ncxd4 (15. Qf2 h4 $18) 15... Nxd4 16. Qf2 $18) 15. b4 {[%emt 0:07:11]} Rc8 {[%emt 0:01:25]} (15... Nfxd4 $2 16. Qf2 $18) (15... Ncxd4 $2 16. Nfxd4 (16. Qf2 h4 $16) 16... Nxd4 17. Qf2 $18) (15... Bf8 $11) 16. Bd3 $1 $14 {[%emt 0:00:19]} Nce7 {[%emt 0:07:11]} (16... Ncxd4 $2 17. Ncxd4 Nxd4 18. Qe3 $18) (16... Nfxd4 $2 17. Qe3 $18) 17. a4 $1 {[%emt 0:00:29] Against Bb5} h4 {[%emt 0:05:24]} (17... Qc7 $14 {is superior.}) 18. Bd2 {[%emt 0:01:29]} Qd8 {[%emt 0:06:23]} 19. Kg1 {[%emt 0:02:05]} b5 {[%emt 0:00:59]} 20. a5 {[%emt 0:01:51]} Rc4 {[%emt 0:01:52]} 21. Be3 {[%emt 0:05:25]} (21. Bxc4 dxc4 22. Ne3 Bc6 $11) 21... Qc7 {[%emt 0:05:40]} 22. Ra2 {[%emt 0:09:28]} Rc3 {[%emt 0:00:41]} 23. Qd2 {[%emt 0:00:43]} O-O {[%emt 0:01:03]} ({Black should try} 23... Bh6 $14) 24. Bf2 $1 $18 {[%emt 0:01:20]} h3 {[%emt 0:01:03]} 25. g3 {[%emt 0:01:38]} Rc8 {[%emt 0:00:11]} 26. Ng5 {[%emt 0:03:13]} Rb3 {[%emt 0:02:06] [#]} 27. Na1 $1 {[%emt 0:03:49][%cal Bc2a1,Ba1b3,Bb3c5][%mdl 32]} Rc3 {[%emt 0:01:04]} 28. Rb2 {[%emt 0:01:24]} Rc1 {[%emt 0:00:43]} (28... Rxd3 $142 29. Qxd3 Qc3 30. Qxc3 Rxc3 31. Nxh3 Rc4) 29. Nb3 {[%emt 0:00:32] Dancing on a razor blade.} Rxf1+ {[%emt 0:00:43]} 30. Bxf1 {[%emt 0:00:06]} Qc3 {[%emt 0:05:22]} 31. Nc5 {[%emt 0:01:37]} (31. Bxh3 Qxd2 32. Rxd2 Rc3 $16) 31... Qxd2 {[%emt 0:00:02]} 32. Rxd2 {[%emt 0:00:07]} Rxc5 {[%emt 0:01:38]} 33. dxc5 {[%emt 0:02:42]} Nc6 {[%emt 0:01:17]} 34. Rb2 {[%emt 0:00:14]} (34. Nxh3 $6 f6 35. exf6 Bxf6 $16) (34. Bxh3 $6 Nxb4 35. Bxf5 gxf5 $18) 34... f6 {[%emt 0:00:11]} 35. exf6 {[%emt 0:01:31]} ({Weaker is} 35. Nxh3 fxe5 36. fxe5 Bxe5 $16) ({And not} 35. Bxh3 fxg5 36. Be1 gxf4 37. gxf4 Kf7 $17) 35... Bxf6 {[%emt 0:00:13]} 36. Rb1 {[%emt 0:00:09]} Bxg5 {[%emt 0:08:34]} (36... e5 $142 37. Bxh3 Bc8) 37. fxg5 {[%emt 0:00:04]} e5 {[%emt 0:00:59]} 38. Bxh3 {[%emt 0:00:27]} Kf7 {[%emt 0:00:30]} 39. Bf1 {[%emt 0:01:18]} Nfe7 {[%emt 0:00:50]} 40. Be1 {[%emt 0:00:47]} (40. h3 $18) 40... Bf5 $2 {[%emt 0:00:44]} (40... e4 $16 {was necessary.} 41. h3 d4) 41. Rb2 {[%emt 0:31:39]} e4 {[%emt 0:10:07]} 42. Rf2 {[%emt 0:00:00]} e3 {[%emt 0:00:31]} 43. Rf3 {[%emt 0:00:00]} d4 {[%emt 0:00:39] [#]} 44. g4 {[%emt 0:00:00]} (44. Be2 $1 $18 {has better winning chances. Hoping for g4.} Ke8 45. Rf4) 44... Ne5 $16 {[%emt 0:00:33][%csl LRf3,LRg4]} 45. Rf4 {[%emt 0:00:00]} d3 $2 {[%emt 0:02:06][%mdl 8192]} 46. gxf5 $18 {[%emt 0:00:00]} d2 {[%emt 0:00:01] [#]} 47. Bxd2 $1 {[%emt 0:00:00]} exd2 {[%emt 0:00:02][%mdl 4096] Endgame KRB-KNN} 48. Be2 {[%emt 0:00:00]} Nxf5 {[%emt 0:00:57]} 49. Rf1 {[%emt 0:00:00]} Ke6 {[%emt 0:02:36]} 50. Rd1 {[%emt 0:00:00]} Nd4 {[%emt 0:02:16]} 51. Kf2 {[%emt 0:00:00]} Nb3 {[%emt 0:02:25]} 52. Rb1 {[%emt 0:00:00]} Nd4 {[%emt 0:10:36]} 53. Ke3 {[%emt 0:00:00][%csl LRd2,LRd4]} Nf5+ {[%emt 0:01:37]} 54. Kxd2 {[%emt 0:00:00]} Nf7 {[%emt 0:00:46] [#]} 55. Bxb5 $1 {[%emt 0:01:48]} axb5 {[%emt 0:01:36]} (55... Ne5 56. Bxa6) 56. a6 {[%emt 0:00:05][%cal Ba5a6,Ba6a7][%mdl 32]} Ne5 {[%emt 0:02:50]} 57. a7 {[%emt 0:00:19]} Nc4+ {[%emt 0:00:06] Weighted Error Value: White=0.16 (very precise) /Black=0.29 (precise)} 1-0